fUST/lending_fUST_20251017
["ID","MTS","AMOUNT","RATE_DAILY","PERIOD"]
[391565450,1760657439875,-405.0,0.00043231,120]
[391565452,1760657439884,-405.0,0.00043311,7]
[391565454,1760657439892,-880430.00258106,0.00043444,30]
[391565458,1760657439941,150.0,0.00025205,2]
[391565462,1760657439967,172.5,0.00025805,2]
[391565466,1760657440008,195.0,0.00026405,2]
[391565472,1760657440078,217.5,0.00027005,2]
[391565500,1760657440492,9.29237432,0.00027605,2]
[391565516,1760657446069,-230.70762568,0.00027605,2]
[391565517,1760657446079,-262.5,0.00028205,2]
[391565518,1760657446088,-151.0,0.00041305,120]
[391565519,1760657446097,-151.0,0.00041444,120]
[391565520,1760657446106,-4161.9129,0.00041444,7]
[391565521,1760657446115,-151.0,0.00043,120]
[391565522,1760657446124,-151.0,0.00043444,120]
[391565523,1760657446132,-151.0,0.00043444,120]
[391565524,1760657446141,-151.0,0.00043444,120]
[391565525,1760657446150,-151.0,0.00043444,2]
[391565526,1760657446159,-8019.83923286,0.00043444,30]
[391565528,1760657523639,402.15066402,0.00027,2]
[391565529,1760657598397,3387.88456511,0.00027,2]
[391565530,1760657600862,417.15472785,0.00025,10]
[391565540,1760658052515,150.0,0.00025205,2]
[391565541,1760658052899,172.5,0.00025805,2]
[391565542,1760658053269,195.0,0.00026405,2]
[391565543,1760658136356,1000.0,0.00029041,120]
[391565544,1760658148027,1000.0,0.00029041,120]
[391565545,1760658366732,417.15472785,0.00027,2]
[391565546,1760658433109,-185.22505997,0.00027005,2]
[391565547,1760658433131,-164.12088673,0.000289,2]
[391565548,1760658433155,-32.42710949,0.00029,2]
[391565550,1760658577319,1410.25825954,0.00027,2]
[391565551,1760658577343,361.16174046,0.00027,2]
[391565596,1760658632300,-156.58615178,0.00029,2]
[391565598,1760658632310,-380.0,0.00029666,2]
[391565600,1760658632320,-183.079199,0.00029983,2]
[391565602,1760658632331,-980.0,0.00030021,2]
[391565604,1760658632341,-385.332325,0.00030045,2]
[391565606,1760658632351,-500.0,0.00030136,2]
[391565608,1760658632360,-1.51219927,0.00030137,2]
[391565753,1760658638070,-228.78545665,0.00030137,2]
[391565755,1760658638081,-237.15,0.00030273,2]
[391565757,1760658638090,-205.29149132,0.00031853,2]
[391565759,1760658638100,-199.0,0.00031953,7]
[391565760,1760658638109,-400.0,0.00031953,2]
[391565762,1760658638119,-345.0,0.00031953,3]
[391565764,1760658638128,-6429.22315744,0.00031954,2]
[391565767,1760658638149,-23065.67820296,0.00031954,2]
[391565769,1760658638159,-180.80283193,0.00033002,2]
[391565771,1760658638168,-150.0,0.00033249,2]
[391565773,1760658638178,-329.72567451,0.00034291,12]
[391565774,1760658638187,-383.0,0.00034369,2]
[391565776,1760658638197,-2040.01,0.00035292,2]
[391565778,1760658638206,-440.27193026,0.00035989,7]
[391565780,1760658638216,-6581.2020641,0.00036361,2]
[391565782,1760658638225,-1162.41061707,0.00036583,4]
[391565784,1760658638235,-1170.78691035,0.00036583,4]
[391565786,1760658638244,-1468.4646705,0.00037345,2]
[391565788,1760658638254,-4080.02,0.00038398,2]
[391565790,1760658638263,-154.006109,0.00039295,60]
[391565791,1760658638274,-3417.3467,0.000412,120]
[391565793,1760658638283,-620.05630427,0.0004131,120]
[391565795,1760658638293,-6120.04,0.00041598,2]
[391565796,1760658638303,-154.006109,0.00042986,60]
[391565798,1760658638313,-156.788498,0.00042986,60]
[391565800,1760658638323,-403.0,0.00042996,30]
[391565801,1760658638332,-220.95755292,0.00042999,31]
[391565803,1760658638342,-9463.0,0.00043,120]
[391565805,1760658638351,-5037.5800861,0.00043,120]
[391565807,1760658638360,-7772.07,0.00043144,38]
[391565808,1760658638370,-500.0,0.00043169,30]
[391565810,1760658638379,-54277.2448837,0.00043313,3]
[391565811,1760658638390,-1999.0,0.00043322,120]
[391565812,1760658638399,-20958.23819555,0.00043324,2]
[391565813,1760658638409,-500.0,0.00043333,120]
[391565814,1760658638419,-269.58970057,0.00043333,31]
[391565815,1760658638428,-153.87150136,0.00043333,31]
[391565816,1760658638438,-270.94419739,0.00043334,2]
[391565817,1760658638447,-20958.23819553,0.00043334,2]
[391565818,1760658638456,-54277.2448837,0.00043334,3]
[391565819,1760658638466,-270.94419738,0.00043337,2]
[391565820,1760658638475,-270.94419738,0.00043339,2]
[391565821,1760658638485,-270.94419738,0.00043342,2]
[391565822,1760658638495,-270.94419738,0.00043344,2]
[391565823,1760658638505,-20958.23819553,0.00043344,2]
[391565824,1760658638514,-177.64477798,0.00043344,19]
[391565825,1760658638524,-151.0,0.000434,18]
[391565826,1760658638534,-1952.16,0.000434,30]
[391565827,1760658638543,-26295.77364739,0.000434,7]
[391565828,1760658638553,-990.0,0.000434,2]
[391565829,1760658638562,-990.0,0.000434,3]
[391565830,1760658638572,-108554.489767,0.00043423,3]
[391565831,1760658638582,-108554.489767,0.00043424,3]
[391565832,1760658638591,-151.0,0.00043443,120]
[391565833,1760658638601,-151.0,0.00043443,120]
[391565834,1760658638611,-17300.0,0.00043443,120]
[391565835,1760658638621,-151.0,0.00043443,120]
[391565836,1760658638631,-17940.1,0.00043443,120]
[391565837,1760658638640,-151.0,0.00043443,120]
[391565838,1760658638650,-18603.8837,0.00043443,120]
[391565839,1760658638659,-151.0,0.00043443,120]
[391565840,1760658638669,-19292.2273969,0.00043443,120]
[391565841,1760658638679,-151.0,0.00043443,120]
[391565842,1760658638690,-151.0,0.00043443,120]
[391565843,1760658638701,-20006.03981059,0.00043443,120]
[391565844,1760658638710,-151.0,0.00043443,120]
[391565845,1760658638720,-151.0,0.00043443,120]
[391565846,1760658638838,-20746.26328358,0.00043443,120]
[391565847,1760658638849,-151.0,0.00043443,120]
[391565848,1760658638859,-151.0,0.00043443,120]
[391565849,1760658638869,-151.0,0.00043443,120]
[391565850,1760658638879,-151.0,0.00043443,120]
[391565851,1760658638889,-151.0,0.00043443,120]
[391565852,1760658638899,-151.0,0.00043443,120]
[391565853,1760658638909,-250.0,0.00043443,120]
[391565854,1760658638918,-151.0,0.00043443,120]
[391565855,1760658638928,-151.0,0.00043443,120]
[391565856,1760658638937,-151.0,0.00043443,120]
[391565857,1760658638947,-250.0,0.00043443,120]
[391565858,1760658638957,-151.0,0.00043443,120]
[391565859,1760658638966,-151.0,0.00043443,120]
[391565860,1760658638976,-151.0,0.00043443,120]
[391565861,1760658638986,-250.0,0.00043443,120]
[391565862,1760658638995,-151.0,0.00043443,120]
[391565863,1760658639005,-151.0,0.00043443,120]
[391565864,1760658639015,-151.0,0.00043443,120]
[391565865,1760658639024,-250.0,0.00043443,120]
[391565866,1760658639034,-151.0,0.00043443,120]
[391565867,1760658639043,-151.0,0.00043443,120]
[391565868,1760658639052,-151.0,0.00043443,120]
[391565869,1760658639062,-250.0,0.00043443,120]
[391565870,1760658639072,-151.0,0.00043443,120]
[391565871,1760658639081,-151.0,0.00043443,120]
[391565872,1760658639091,-151.0,0.00043443,120]
[391565873,1760658639101,-250.0,0.00043443,120]
[391565874,1760658639112,-151.0,0.00043443,120]
[391565875,1760658639122,-151.0,0.00043443,120]
[391565876,1760658639132,-151.0,0.00043443,120]
[391565877,1760658639142,-250.0,0.00043443,120]
[391565878,1760658639152,-263.37743979,0.00043443,120]
[391565879,1760658639162,-151.0,0.00043443,120]
[391565880,1760658639171,-151.0,0.00043443,120]
[391565881,1760658639181,-151.0,0.00043443,120]
[391565882,1760658639191,-151.0,0.00043443,120]
[391565883,1760658639201,-250.0,0.00043443,120]
[391565884,1760658639211,-250.0,0.00043443,120]
[391565885,1760658639221,-151.0,0.00043443,120]
[391565886,1760658639232,-151.0,0.00043443,120]
[391565887,1760658639242,-275.91600912,0.00043443,120]
[391565888,1760658639252,-250.0,0.00043443,120]
[391565889,1760658639262,-250.0,0.00043443,120]
[391565890,1760658639271,-151.0,0.00043443,120]
[391565891,1760658639281,-250.0,0.00043443,120]
[391565892,1760658639290,-248.04596635,0.00043443,120]
[391565893,1760658639300,-250.0,0.00043443,120]
[391565894,1760658639309,-151.0,0.00043443,120]
[391565895,1760658639319,-250.0,0.00043443,120]
[391565896,1760658639328,-250.0,0.00043443,120]
[391565897,1760658639338,-151.0,0.00043443,120]
[391565898,1760658639347,-250.0,0.00043443,120]
[391565899,1760658639357,-250.0,0.00043443,120]
[391565900,1760658639366,-151.0,0.00043443,120]
[391565901,1760658639376,-250.0,0.00043443,120]
[391565902,1760658639386,-151.0,0.00043443,120]
[391565903,1760658639395,-250.0,0.00043443,120]
[391565904,1760658639406,-250.0,0.00043443,120]
[391565905,1760658639416,-250.0,0.00043443,120]
[391565906,1760658639425,-250.0,0.00043443,120]
[391565907,1760658639435,-250.0,0.00043443,120]
[391565908,1760658639444,-250.0,0.00043443,120]
[391565909,1760658639453,-250.0,0.00043443,120]
[391565910,1760658639463,-250.0,0.00043443,120]
[391565911,1760658639473,-250.0,0.00043443,120]
[391565912,1760658639483,-250.0,0.00043443,120]
[391565913,1760658639492,-250.0,0.00043443,120]
[391565914,1760658639502,-250.0,0.00043443,120]
[391565915,1760658639511,-1888.0,0.00043443,30]
[391565916,1760658639521,-250.0,0.00043443,120]
[391565917,1760658639531,-250.0,0.00043443,120]
[391565918,1760658639541,-250.0,0.00043443,120]
[391565919,1760658639550,-1957.856,0.00043443,30]
[391565920,1760658639560,-250.0,0.00043443,120]
[391565921,1760658639570,-250.0,0.00043443,120]
[391565922,1760658639579,-250.0,0.00043443,120]
[391565923,1760658639589,-1325.29478779,0.00043443,30]
[391565924,1760658639600,-250.0,0.00043443,120]
[391565925,1760658639611,-250.0,0.00043443,120]
[391565926,1760658639621,-250.0,0.00043443,120]
[391565927,1760658639631,-250.0,0.00043443,120]
[391565928,1760658639640,-250.0,0.00043443,120]
[391565929,1760658639650,-250.0,0.00043443,120]
[391565930,1760658639660,-250.0,0.00043443,120]
[391565931,1760658639669,-250.0,0.00043443,120]
[391565932,1760658639679,-250.0,0.00043443,120]
[391565933,1760658639689,-250.0,0.00043443,120]
[391565934,1760658639703,-250.0,0.00043443,120]
[391565935,1760658639713,-250.0,0.00043443,120]
[391565936,1760658639722,-250.0,0.00043443,120]
[391565937,1760658639731,-250.0,0.00043443,120]
[391565938,1760658639743,-250.0,0.00043443,120]
[391565939,1760658639752,-250.0,0.00043443,120]
[391565940,1760658639762,-250.0,0.00043443,120]
[391565941,1760658639774,-250.0,0.00043443,120]
[391565942,1760658639784,-250.0,0.00043443,120]
[391565943,1760658639794,-255.53359552,0.00043443,120]
[391565944,1760658639804,-250.0,0.00043443,120]
[391565945,1760658639814,-250.0,0.00043443,120]
[391565946,1760658639824,-151.0,0.00043443,120]
[391565947,1760658639834,-250.0,0.00043443,120]
[391565948,1760658639844,-151.0,0.00043443,120]
[391565949,1760658639854,-151.0,0.00043443,120]
[391565950,1760658639863,-250.0,0.00043443,120]
[391565951,1760658639873,-151.0,0.00043443,120]
[391565952,1760658639883,-250.0,0.00043443,120]
[391565953,1760658639892,-151.0,0.00043443,120]
[391565954,1760658639902,-250.0,0.00043443,120]
[391565955,1760658639911,-250.0,0.00043443,120]
[391565956,1760658639921,-151.0,0.00043443,120]
[391565957,1760658639930,-549623.38673877,0.00043444,30]
[391565958,1760658639968,-2139.58543488,0.00043444,30]
[391565959,1760658639980,-20537.33689652,0.00043444,30]
[391565972,1760658640395,-250.0,0.00043443,120]
[391565974,1760658640405,-151.0,0.00043443,120]
[391565976,1760658640414,-250.0,0.00043443,120]
[391565978,1760658640424,-151.0,0.00043443,120]
[391565981,1760658640433,-250.0,0.00043443,120]
[391565983,1760658640443,-151.0,0.00043443,120]
[391565985,1760658640453,-128.99427658,0.00043444,30]
[391566253,1760658643510,-1219.0,0.000434,18]
[391566254,1760658643520,-250.0,0.00043443,120]
[391566255,1760658643529,-151.0,0.00043443,120]
[391566256,1760658643539,-250.0,0.00043443,120]
[391566257,1760658643548,-151.0,0.00043443,120]
[391566258,1760658643558,-79.70834408,0.00043443,120]
[391566459,1760658646217,-170.29165592,0.00043443,120]
[391566460,1760658646226,-151.0,0.00043443,120]
[391566461,1760658646236,-250.0,0.00043443,120]
[391566462,1760658646245,-94.34513719,0.00043443,120]
[391566463,1760658646256,-56.65486281,0.00043443,120]
[391566464,1760658646266,-250.0,0.00043443,120]
[391566465,1760658646275,-151.0,0.00043443,120]
[391566466,1760658646284,-250.0,0.00043443,120]
[391566468,1760658646294,-151.0,0.00043443,120]
[391566470,1760658646303,-250.0,0.00043443,120]
[391566472,1760658646313,-151.0,0.00043443,120]
[391566473,1760658646322,-250.0,0.00043443,120]
[391566474,1760658646331,-151.0,0.00043443,120]
[391566475,1760658646340,-250.0,0.00043443,120]
[391566476,1760658646350,-151.0,0.00043443,120]
[391566477,1760658646359,-4627.59120926,0.00043444,30]
[391566497,1760658748034,500.0,0.0002652,7]
[391566502,1760659027368,153.65241898,0.00026,3]
[391566504,1760659136882,160.0,0.00025,3]
[391566505,1760659287794,417.15472785,0.00027,2]
[391566506,1760659363209,401.73934241,0.00027,2]
[391566510,1760659638127,-249.84268453,0.00027479,25]
[391566511,1760659638146,-115.60127245,0.00032962,2]
[391566512,1760659671219,478.0,0.00029,120]
[391566549,1760659832574,-49.44388138,0.00032962,2]
[391566551,1760659832584,-21566.54411862,0.00033255,30]
[391566601,1760659838506,-71752.45588138,0.00033255,30]
[391566602,1760659838515,-200.0,0.00034689,2]
[391566603,1760659838525,-250.0,0.00035287,2]
[391566604,1760659838533,-417.53148096,0.00036089,2]
[391566605,1760659838542,-477.17883538,0.00036089,2]
[391566606,1760659838551,-744.84633835,0.00036089,2]
[391566607,1760659838559,-666.0,0.00036151,2]
[391566608,1760659838568,-1000.0,0.00036227,30]
[391566609,1760659838577,-1890.32,0.00036626,2]
[391566610,1760659838587,-1200.0,0.00037988,3]
[391566611,1760659838596,-238.905395,0.00038283,120]
[391566612,1760659838606,-1156.04695044,0.00039099,120]
[391566613,1760659838615,-166.5193226,0.00039102,30]
[391566614,1760659838625,-189.8496045,0.00039102,30]
[391566615,1760659838636,-153.0,0.00039102,30]
[391566616,1760659838646,-3780.63,0.00039955,2]
[391566617,1760659838656,-300.0,0.00040721,90]
[391566618,1760659838666,-1156.04695044,0.00041445,120]
[391566619,1760659838676,-340.11679784,0.00041905,4]
[391566620,1760659838686,-570.0,0.00042081,2]
[391566621,1760659838696,-317.01281396,0.0004209,2]
[391566622,1760659838706,-362.30035882,0.0004209,2]
[391566623,1760659838715,-233.86725274,0.0004209,2]
[391566624,1760659838725,-420.96105494,0.0004209,2]
[391566625,1760659838735,-748.37520878,0.0004209,2]
[391566626,1760659838745,-1169.33626372,0.0004209,2]
[391566627,1760659838756,-1682.16037553,0.0004209,2]
[391566628,1760659838765,-403.27444268,0.0004209,2]
[391566629,1760659838775,-566.09431065,0.0004209,2]
[391566630,1760659838785,-150.0,0.00042093,2]
[391566631,1760659838795,-15000.0,0.000422,120]
[391566632,1760659838805,-234.0,0.00042315,7]
[391566633,1760659838814,-234.0,0.00042431,2]
[391566634,1760659838824,-320.96403248,0.00042478,2]
[391566635,1760659838834,-318.58187675,0.00042478,2]
[391566636,1760659838844,-235.5524926,0.00042478,2]
[391566637,1760659838854,-423.99448667,0.00042478,2]
[391566638,1760659838864,-753.76797631,0.00042478,2]
[391566639,1760659838874,-1177.76246298,0.00042478,2]
[391566640,1760659838884,-1694.28196875,0.00042478,2]
[391566641,1760659838894,-316.33250278,0.00042478,2]
[391566642,1760659838904,-322.20310077,0.00042478,2]
[391566643,1760659838914,-570.0,0.00042541,7]
[391566644,1760659838924,-172.5,0.00042693,2]
[391566645,1760659838934,-571.0,0.00042703,2]
[391566646,1760659838944,-494.37,0.0004278,10]
[391566647,1760659838953,-368.8213228,0.00042789,31]
[391566648,1760659838963,-211.1656218,0.00042789,31]
[391566649,1760659838973,-385.28963816,0.00042789,31]
[391566650,1760659838983,-330.82404082,0.0004279,2]
[391566651,1760659838994,-20958.23819555,0.0004279,2]
[391566652,1760659839004,-1001171.93953002,0.0004279,7]
[391566653,1760659839015,-1000.0,0.00042874,2]
[391566654,1760659839024,-1000.0,0.00042874,2]
[391566655,1760659839034,-1000.0,0.00042874,2]
[391566656,1760659839044,-1000.0,0.00042874,2]
[391566657,1760659839054,-1000.0,0.00042874,2]
[391566658,1760659839064,-9000.0,0.00042876,30]
[391566659,1760659839074,-10000.0,0.00042877,20]
[391566660,1760659839084,-1999.0,0.00042877,120]
[391566661,1760659839094,-73812.8368054,0.00042878,3]
[391566662,1760659839104,-3866.06295659,0.00042878,3]
[391566663,1760659839114,-16000.0,0.00042888,30]
[391566664,1760659839124,-500.0,0.00042889,120]
[391566665,1760659839136,-295251.347222,0.0004289,3]
[391566666,1760659839146,-30928.5036527,0.0004289,3]
[391566667,1760659839156,-244587.41879249,0.000429,2]
[391566737,1760659840978,-125412.58120751,0.000429,2]
[391566739,1760659840988,-151.0,0.000429,120]
[391566741,1760659840997,-330.8240408,0.00042929,2]
[391566742,1760659841007,-154.006109,0.00042988,60]
[391566744,1760659841017,-156.788498,0.00042988,60]
[391566746,1760659841027,-1000.0,0.00043,120]
[391566748,1760659841036,-5037.58008512,0.00043,120]
[391566750,1760659841045,-9463.0,0.00043,120]
[391566752,1760659841055,-1000.0,0.00043,120]
[391566754,1760659841065,-1000.0,0.00043,120]
[391566756,1760659841075,-3866.06295659,0.00043057,3]
[391566758,1760659841085,-330.8240408,0.00043067,2]
[391566760,1760659841095,-20958.23819553,0.00043067,2]
[391566762,1760659841105,-25308.85,0.00043144,38]
[391566764,1760659841114,-500.0,0.00043169,30]
[391566766,1760659841124,-10000.0,0.000432,120]
[391566768,1760659841137,-9999.99999921,0.000432,120]
[391566770,1760659841147,-330.8240408,0.00043206,2]
[391566772,1760659841157,-2556.0,0.00043276,7]
[391566774,1760659841166,-5670.95,0.00043285,2]
[391566776,1760659841177,-195.0,0.00043293,2]
[391566777,1760659841187,-1952.16,0.000433,30]
[391566779,1760659841197,-177.64477798,0.00043344,19]
[391566781,1760659841207,-330.8240408,0.00043344,2]
[391566783,1760659841217,-20958.23819553,0.00043344,2]
[391566785,1760659841226,-151.0,0.000434,20]
[391566787,1760659841236,-151.0,0.000434,18]
[391566789,1760659841245,-151.0,0.000434,18]
[391566791,1760659841253,-193.920489,0.000434,2]
[391566793,1760659841262,-1168.0,0.000434,18]
[391566795,1760659841271,-500.0,0.000434,18]
[391566797,1760659841281,-564.0,0.000434,18]
[391566799,1760659841291,-514.14034087,0.00043424,3]
[391566964,1760659843555,-2.14398727,0.00043424,3]
[391566972,1760659867369,1332.8,0.00027,2]
[391566973,1760659867395,2864.45708547,0.00027,2]
[391566974,1760659867421,5193.77795306,0.00027,2]
[391566975,1760659888467,4806.23204694,0.00025,30]
[391566976,1760659888492,5193.76795306,0.00025,30]
[391566977,1760659912924,4806.24204694,0.00025,30]
[391566978,1760659912947,5193.75795306,0.00025,30]
[391566979,1760659940179,4806.25204694,0.00025,30]
[391566980,1760659940203,5193.74795306,0.00025,30]
[391566981,1760660192927,177.87594174,0.00027,2]
[391566982,1760660199429,4628.3861052,0.00027,2]
[391566983,1760660199456,1262.6138948,0.00027,2]
[391566984,1760660211217,417.15472785,0.00027,2]
[391567032,1760660506910,150.0,0.00025205,2]
[391567033,1760660507281,172.5,0.00025805,2]
[391567034,1760660507655,195.0,0.00026405,2]
[391567050,1760660899630,1007.22787404,0.00015,2]
[391567052,1760660906100,209.71989783,0.000264,2]
[391567053,1760660911171,452.73343114,0.00022,5]
[391567059,1760660920227,150.99999984,0.00025,5]
[391567066,1760660922834,9849.01000016,0.00024142,2]
[391567067,1760660922859,10000.01,0.00024142,2]
[391567068,1760660922882,10000.01,0.00024142,2]
[391567069,1760660922905,437.65390662,0.00024142,2]
[391567070,1760660970152,-217.5,0.00027005,2]
[391567071,1760660970172,-240.0,0.00027605,2]
[391567072,1760660970192,-262.5,0.00028205,2]
[391567118,1760661032672,-200.0,0.00028705,2]
[391567120,1760661032685,-554.61769849,0.00028755,2]
[391567161,1760661038441,-914.69305766,0.00028755,2]
[391567162,1760661038453,-285.0,0.00028805,2]
[391567163,1760661038464,-307.5,0.00029405,2]
[391567164,1760661038475,-1909.81348694,0.000298,10]
[391567165,1760661038485,-300.0,0.00029999,2]
[391567166,1760661038495,-1200.0,0.00029999,2]
[391567167,1760661038505,-198.849,0.0003,2]
[391567168,1760661038516,-8377.22138827,0.0003,2]
[391567169,1760661038530,-330.0,0.00030005,2]
[391567170,1760661038541,-352.5,0.00030605,2]
[391567171,1760661038554,-729.0,0.00031203,3]
[391567172,1760661038568,-45405.41274286,0.00031203,2]
[391567173,1760661038579,-375.0,0.00031205,2]
[391567174,1760661038590,-397.5,0.00031805,2]
[391567175,1760661038601,-400.0,0.00032332,2]
[391567176,1760661038611,-40000.04,0.00032357,2]
[391567177,1760661038621,-420.0,0.00032405,2]
[391567178,1760661038632,-400.0,0.0003247,3]
[391567179,1760661038642,-442.5,0.00033005,2]
[391567180,1760661038654,-494.37,0.00033242,10]
[391567181,1760661038664,-698.51,0.00033242,3]
[391567182,1760661038676,-208522.55616625,0.00033252,20]
[391567183,1760661038687,-10061.01100287,0.00033252,120]
[391567184,1760661038699,-368.8213228,0.00033258,7]
[391567185,1760661038710,-211.1656218,0.00033258,7]
[391567186,1760661038720,-385.28963816,0.00033258,7]
[391567187,1760661038730,-527.35,0.000333,2]
[391567188,1760661038741,-710.72,0.000333,14]
[391567189,1760661038751,-250.0,0.00033304,2]
[391567190,1760661038761,-465.0,0.00033605,2]
[391567191,1760661038772,-9383.0,0.00033804,2]
[391567192,1760661038782,-12606.79977316,0.00033871,2]
[391567193,1760661038792,-10000.0,0.00033971,2]
[391567194,1760661038801,-5000.0,0.00035255,4]
[391567195,1760661038812,-165.49038626,0.0003579,2]
[391567196,1760661038828,-76624.066269,0.0003589,3]
[391567197,1760661038838,-2100.52040973,0.0003589,3]
[391567198,1760661038850,-173.49654,0.00036163,60]
[391567199,1760661038863,-159.20868115,0.00037581,2]
[391567200,1760661038874,-802.2091508,0.00037894,2]
[391567201,1760661038884,-165.49038625,0.00038124,2]
[391567202,1760661038895,-12606.79977314,0.00038386,2]
[391567203,1760661038905,-1000.0,0.00038679,2]
[391567204,1760661038917,-1000.0,0.00038679,2]
[391567205,1760661038928,-1000.0,0.00038679,2]
[391567206,1760661038938,-1000.0,0.00038679,2]
[391567207,1760661038949,-1000.0,0.00038679,2]
[391567208,1760661038960,-1000.0,0.00038679,2]
[391567209,1760661038970,-2665.04104435,0.00039,60]
[391567210,1760661038981,-578.02347522,0.00039099,120]
[391567211,1760661038992,-153248.132538,0.00039241,3]
[391567212,1760661039003,-4201.04081946,0.00039241,3]
[391567213,1760661039014,-2000.0,0.00039245,10]
[391567214,1760661039025,-1999.0,0.0003925,120]
[391567215,1760661039036,-99999.0,0.00039251,2]
[391567216,1760661039047,-66391.3613,0.00039444,7]
[391567217,1760661039058,-300.0,0.00039779,90]
[391567218,1760661039070,-300.0,0.00039779,90]
[391567219,1760661039083,-300.0,0.00039779,90]
[391567220,1760661039094,-300.0,0.00039779,90]
[391567221,1760661039105,-2001170.93953002,0.000399,30]
[391567222,1760661039116,-148058.0,0.0004,7]
[391567223,1760661039127,-165.49038625,0.00040459,2]
[391567224,1760661039140,-1999.0,0.0004062,120]
[391567225,1760661039151,-286.57562608,0.00040997,2]
[391567226,1760661039303,-527.35,0.00041,2]
[391567227,1760661039319,-76624.066269,0.00041026,3]
[391567228,1760661039329,-2100.52040973,0.00041026,3]
[391567229,1760661039339,-4000.0,0.00041028,14]
[391567230,1760661039349,-3000.0,0.00041028,14]
[391567231,1760661039360,-5000.0,0.00041037,14]
[391567232,1760661039370,-710.72,0.000411,14]
[391567233,1760661039382,-1000.0,0.00041344,20]
[391567234,1760661039392,-76624.066269,0.00041434,3]
[391567235,1760661039402,-4201.04081946,0.00041434,3]
[391567236,1760661039411,-39659.6074,0.00041444,7]
[391567237,1760661039421,-79038.7918,0.00041444,7]
[391567238,1760661039431,-578.02347522,0.00041445,120]
[391567239,1760661039440,-331.56949515,0.00041473,10]
[391567240,1760661039450,-500.0,0.00041473,2]
[391567241,1760661039459,-500.0,0.00041473,10]
[391567242,1760661039469,-150.0,0.00041473,10]
[391567243,1760661039479,-150.0,0.00041473,10]
[391567244,1760661039489,-8000.0,0.00041679,14]
[391567245,1760661039498,-154.609635,0.0004173,60]
[391567246,1760661039507,-156.924309,0.0004173,60]
[391567247,1760661039522,-2100.52040973,0.00041873,3]
[391567248,1760661039531,-45979.53883154,0.00042,120]
[391567249,1760661039540,-1000.0,0.00042021,10]
[391567250,1760661039549,-1000.0,0.00042021,2]
[391567251,1760661039558,-250.0,0.00042021,10]
[391567252,1760661039568,-287.91938817,0.00042021,10]
[391567253,1760661039577,-12000.0,0.0004212,20]
[391567254,1760661039587,-156.924309,0.00042125,90]
[391567255,1760661039597,-1785.7236185,0.000424,120]
[391567256,1760661039607,-406.0,0.00042494,2]
[391567257,1760661039616,-923.02496732,0.00042568,10]
[391567258,1760661039626,-1037.05869976,0.00042568,2]
[391567259,1760661039635,-450.0,0.00042568,10]
[391567260,1760661039645,-1000.0,0.0004258,120]
[391567261,1760661039654,-1000.0,0.0004258,120]
[391567262,1760661039664,-1000.0,0.0004258,120]
[391567263,1760661039674,-1650.96,0.0004258,120]
[391567264,1760661039685,-2100.52040973,0.0004259,3]
[391567265,1760661039694,-1623.0,0.00042599,2]
[391567266,1760661039704,-1000.0,0.000426,120]
[391567267,1760661039713,-1000.0,0.000426,120]
[391567268,1760661039722,-1000.0,0.000426,120]
[391567269,1760661039732,-1000.0,0.000426,120]
[391567270,1760661039742,-1000.0,0.000426,120]